bitfinex-derivatives/quotes_ETHF0:USTF0_20250627
["timestamp","ask_amount","ask_price","bid_price","bid_amount"]
[1750996250393,0.40816,2449.0,2448.8,0.40818]
[1750996252596,0.40816,2449.0,2448.7,3.65435594]
[1750996253099,0.40816,2449.0,2448.7,4.06253594]
[1750996253397,0.40816,2449.0,2448.8,0.40818]
[1750996253790,0.40816,2449.0,2448.7,4.06254594]
[1750996253990,0.40815,2449.0,2448.7,4.06254594]
[1750996254499,0.40815,2449.0,2448.8,0.40818]
[1750996255504,0.6691,2449.1,2448.7,3.65435594]
[1750996255803,0.6691,2449.1,2448.9,0.40816]
[1750996256008,1.438,2449.0,2448.9,0.40816]
[1750996257701,0.6691,2449.1,2449.0,0.40815]
[1750996260001,1.07723,2449.1,2448.9,1.11505]
[1750996260202,2.0215,2449.1,2449.0,0.40815]
[1750996260902,0.6691,2449.1,2449.0,0.40815]
[1750996261600,1.07723,2449.1,2448.9,1.11505]
[1750996262001,0.40817,2448.9,2448.6,6.16005594]
[1750996262202,0.4082,2448.7,2448.6,3.2078]
[1750996262507,2.46449,2448.8,2448.6,3.61601]
[1750996262708,2.0563,2448.8,2448.6,3.61601]
[1750996262901,2.46449,2448.8,2448.6,3.2078]
[1750996263106,2.0563,2448.8,2448.6,3.61601]
[1750996263309,2.46448,2448.8,2448.6,3.61601]
[1750996264010,2.0563,2448.8,2448.6,3.61601]
[1750996264910,2.46448,2448.8,2448.6,3.2078]
[1750996265103,2.46448,2448.8,2448.6,3.61601]
[1750996265304,2.0563,2448.8,2448.6,3.61601]
[1750996265604,2.0563,2448.8,2448.7,0.4082]
[1750996266913,0.7039,2448.8,2448.7,0.4082]
[1750996267714,0.7039,2448.8,2448.6,6.03669794]
[1750996268010,0.7039,2448.8,2448.7,0.4082]
[1750996268616,6.49,2449.0,2448.7,2.95225594]
[1750996268817,7.1806,2449.0,2448.8,0.40817]
[1750996272411,7.1806,2449.0,2448.7,4.02914594]
[1750996272609,7.1806,2449.0,2448.7,1.07689]
[1750996272610,8.5793,2449.0,2448.7,1.07689]
[1750996272808,8.98745,2449.0,2448.8,0.40818]
[1750996273509,8.98745,2449.0,2448.7,0.40819]
[1750996273510,0.40817,2448.9,2448.7,0.40819]
[1750996273713,8.98746,2449.0,2448.7,0.40819]
[1750996273911,8.98746,2449.0,2448.6,6.03670794]
[1750996274217,0.97284164,2448.9,2448.6,6.03670794]
[1750996274417,0.40818,2448.9,2448.6,6.03670794]
[1750996274712,1.09876,2449.0,2448.7,0.4082]
[1750996274915,0.40817,2448.9,2448.6,6.03669794]
[1750996275717,0.40817,2448.9,2448.7,0.4082]
[1750996276418,0.40817,2448.9,2448.6,6.03670794]
[1750996276921,3.64285594,2449.0,2448.6,5.62849794]
[1750996277121,0.40818,2448.8,2448.6,5.62849794]
[1750996277318,0.40818,2448.8,2448.7,2.42069794]
[1750996277620,1.72718,2448.8,2448.7,2.42069794]
[1750996279113,1.72718,2448.8,2448.5,2.42069794]
[1750996279114,0.40821,2448.6,2448.5,2.42069794]
[1750996279322,0.40821,2448.7,2448.5,2.42069794]
[1750996279525,0.729,2448.6,2448.5,2.82892794]
[1750996279821,1.4283,2448.6,2448.5,2.82892794]
[1750996280523,6.483,2448.9,2448.5,5.62849794]
[1750996280716,0.97304344,2448.8,2448.6,4.08285594]
[1750996281019,8.31947,2448.9,2448.6,4.08285594]
[1750996281220,0.97296376,2448.8,2448.7,0.4082]
[1750996281521,0.97296376,2448.8,2448.6,3.67465594]
[1750996281721,1.4283,2448.9,2448.5,2.42069794]
[1750996282022,0.4082,2448.7,2448.4,3.55133794]
[1750996282520,1.7458,2448.7,2448.4,3.55133794]
[1750996282821,1.7458,2448.7,2448.4,3.14309794]
[1750996283018,1.7458,2448.7,2448.4,3.55133794]
[1750996283215,0.40822,2448.6,2448.4,3.14309794]
[1750996283416,0.40823,2448.5,2448.4,2.42069794]
[1750996283617,2.0613,2448.5,2448.4,2.42069794]
[1750996283817,1.69657616,2448.5,2448.4,0.40825]
[1750996284214,0.7237,2448.5,2448.3,0.40825]
[1750996285426,1.13193,2448.5,2448.3,0.40825]
[1750996287518,0.7237,2448.5,2448.3,0.40825]
[1750996289727,1.81731,2448.7,2448.4,2.95225594]
[1750996289931,1.10261,2448.7,2448.5,0.6822]
[1750996290228,1.10261,2448.7,2448.5,1.09043]
[1750996290523,1.10261,2448.7,2448.5,0.6822]
[1750996291025,0.40821,2448.6,2448.5,0.6822]
[1750996292526,1.1026,2448.7,2448.5,1.09043]
[1750996292927,0.97209575,2448.6,2448.5,1.09043]
[1750996293129,1.1026,2448.7,2448.5,1.09043]
[1750996293322,0.6944,2448.7,2448.6,0.40821]
[1750996293626,1.66643907,2448.7,2448.6,0.40821]
[1750996293823,2.07463907,2448.7,2448.6,0.40821]
[1750996294024,1.66643907,2448.7,2448.6,0.40821]
[1750996294324,2.07463907,2448.7,2448.6,0.40821]
[1750996294825,2.07463907,2448.7,2448.5,1.09042]
[1750996295026,1.1026,2448.7,2448.5,1.09042]
[1750996295225,1.1026,2448.7,2448.6,0.40821]
[1750996295425,2.07458984,2448.7,2448.5,1.09042]
[1750996295628,1.1026,2448.7,2448.5,1.09042]
[1750996297527,0.6944,2448.7,2448.3,2.95225594]
[1750996297730,0.40826,2448.4,2448.2,3.61607]
[1750996297931,0.7065,2448.3,2448.2,3.61607]
[1750996298236,0.7065,2448.3,2448.2,3.2078]
[1750996298719,0.40828,2448.2,2448.1,2.42069794]
[1750996298919,0.40831,2448.0,2447.9,2.42069794]
[1750996300134,0.40831,2448.0,2447.8,6.03684794]
[1750996300342,0.7065,2447.9,2447.8,6.03684794]
[1750996300542,0.7065,2447.9,2447.8,3.61615]
[1750996301143,0.7065,2447.9,2447.8,6.04670269]
[1750996301745,0.7065,2447.9,2447.8,3.61615]
[1750996302038,0.7065,2447.9,2447.8,3.2078]
[1750996302942,1.11483,2447.9,2447.8,3.2078]
[1750996303241,0.7065,2447.9,2447.8,3.2078]
[1750996303446,1.11483,2447.9,2447.8,3.2078]
[1750996305452,0.7065,2447.9,2447.8,3.2078]
[1750996305748,1.11483,2447.9,2447.8,3.2078]
[1750996306148,0.7065,2447.9,2447.8,3.2078]
[1750996306547,1.11483,2447.9,2447.8,3.2078]
[1750996308553,0.40836,2447.8,2447.6,0.7301]
[1750996309049,1.13616,2447.8,2447.6,0.7301]
[1750996309238,1.13615,2447.8,2447.6,1.13848]
[1750996309443,0.7278,2447.8,2447.7,0.40836]
[1750996310750,0.7278,2447.8,2447.6,1.13847]
[1750996312352,0.7278,2447.8,2447.7,0.40836]
[1750996312955,0.7278,2447.8,2447.7,3.36061594]
[1750996314950,0.7065,2447.9,2447.7,2.95225594]
[1750996315156,0.688,2448.1,2447.9,0.40833]
[1750996315354,7.12,2448.1,2447.9,3.36058594]
[1750996315955,7.7903,2448.1,2447.9,3.36058594]
[1750996316551,10.04804,2448.5,2448.2,0.40828]
[1750996316756,0.97130387,2448.4,2448.3,2.95225594]
[1750996316957,0.97130387,2448.4,2448.3,3.36051594]
[1750996317453,1.37955387,2448.4,2448.1,3.36054594]
[1750996317649,0.97130387,2448.3,2448.1,3.36054594]
[1750996317855,1.64160387,2448.3,2448.1,3.36054594]
[1750996318055,0.6703,2448.3,2448.1,3.36054594]
[1750996318250,1.07857,2448.3,2448.1,2.95225594]
[1750996318553,1.07857,2448.3,2448.0,1.0724]
[1750996319054,0.6703,2448.3,2448.1,0.40829]
[1750996319457,1.07857,2448.3,2448.1,0.40829]
[1750996320357,1.07857,2448.3,2448.1,3.36054594]
[1750996323457,1.07857,2448.3,2448.1,2.95225594]
[1750996323650,1.07857,2448.3,2448.1,3.36055594]
[1750996323851,1.07857,2448.3,2448.0,0.6641]
[1750996323852,0.40828,2448.2,2448.0,0.6641]
[1750996324051,0.40828,2448.2,2448.0,1.07241]
[1750996324356,1.07858,2448.3,2448.1,0.4083]
[1750996324656,0.40828,2448.2,2448.0,1.0724]
[1750996325558,0.6703,2448.3,2448.1,0.40828]
[1750996326860,1.07857,2448.3,2448.1,0.40828]
[1750996327361,0.40828,2448.2,2448.0,1.07241]
[1750996328854,1.07857,2448.3,2448.0,1.07241]
[1750996329056,0.97261852,2448.2,2448.0,1.07241]
[1750996329263,9.6398,2448.5,2448.2,0.40828]
[1750996329561,7.81292992,2448.4,2448.2,0.40828]
[1750996329859,1.38093992,2448.3,2448.1,3.36054594]
[1750996330060,0.40826,2448.3,2448.1,3.36054594]
[1750996332161,0.40826,2448.3,2448.1,0.40829]
[1750996332662,0.40826,2448.4,2448.2,0.40828]
[1750996332858,0.97275056,2448.3,2448.2,0.40828]
[1750996333164,0.97275056,2448.3,2448.1,6.56834594]
[1750996333365,6.84026,2448.4,2448.1,6.56834594]
[1750996333567,0.97271712,2448.3,2448.2,0.40828]
[1750996333768,0.97271712,2448.3,2448.1,6.56834594]
[1750996334060,5.71814,2448.5,2448.3,0.40826]
[1750996334265,0.97271056,2448.4,2448.2,0.40827]
[1750996334463,4.30234,2448.5,2448.1,6.16005594]
[1750996334464,0.97264088,2448.3,2448.1,6.16005594]
[1750996334661,0.40826,2448.4,2448.2,0.40828]
[1750996334858,0.97265225,2448.3,2448.2,0.40828]
[1750996335463,10.3261,2448.5,2448.3,0.40825]
[1750996335663,3.8941,2448.5,2448.4,1.08025]
[1750996335864,11.29866302,2448.5,2448.4,1.08025]
[1750996336266,4.86666302,2448.5,2448.4,1.08025]
[1750996336466,11.29866302,2448.5,2448.4,1.08025]
[1750996336667,11.29866302,2448.5,2448.4,0.672]
[1750996337561,11.29866302,2448.5,2448.4,1.08025]
[1750996337961,11.70689302,2448.5,2448.4,0.672]
[1750996338366,8.49909302,2448.5,2448.2,0.40828]
[1750996338566,0.97256302,2448.4,2448.3,0.40826]
[1750996339869,0.97256302,2448.4,2448.2,1.07727]
[1750996340773,0.97256302,2448.4,2448.3,0.40826]
[1750996343173,0.97256302,2448.4,2448.3,3.36051594]
[1750996346473,0.97256302,2448.4,2448.3,0.40826]
[1750996348571,0.97256302,2448.4,2448.2,4.02952594]
[1750996348772,0.97256302,2448.4,2448.3,0.40826]
[1750996348972,0.97256302,2448.4,2448.2,4.02952594]
[1750996349275,0.97256302,2448.4,2448.3,0.40826]
[1750996351974,0.6863,2448.5,2448.4,0.40825]
[1750996352177,1.65899106,2448.5,2448.4,0.40825]
[1750996352676,1.65899106,2448.5,2448.3,0.40826]
[1750996352870,0.6863,2448.5,2448.2,3.62125594]
[1750996353279,0.6863,2448.5,2448.3,0.40825]
[1750996353478,0.97277059,2448.4,2448.3,0.40825]
[1750996364789,0.97277059,2448.4,2448.2,1.07727]
[1750996364989,1.09454,2448.5,2448.2,0.669]
[1750996365190,0.97320517,2448.4,2448.3,0.40826]
[1750996367192,1.38145517,2448.4,2448.2,1.07727]
[1750996367388,1.38133572,2448.3,2448.1,2.43055269]
[1750996367593,1.3633,2448.3,2448.1,0.4083]
[1750996367782,0.7102,2448.2,2448.1,0.4083]
[1750996377905,0.7102,2448.2,2448.0,0.4083]
[1750996378103,0.7102,2448.2,2448.1,0.4083]
[1750996378294,2.0554,2448.2,2448.1,0.4083]
[1750996380206,2.0554,2448.2,2448.0,0.4083]
[1750996380502,2.0554,2448.2,2448.1,0.4083]
[1750996380704,2.7794,2448.2,2448.1,0.4083]
[1750996380903,6.13994594,2448.2,2447.9,0.7166]
[1750996381104,6.13994594,2448.2,2448.0,0.40831]
[1750996381302,1.3812,2448.1,2447.9,0.40832]
[1750996381495,1.3812,2448.1,2448.0,0.40831]
[1750996387104,1.3812,2448.1,2447.9,3.61612]
[1750996389408,1.3812,2448.1,2447.9,3.2078]
[1750996389910,1.3812,2448.1,2447.9,3.61612]
[1750996391814,1.3812,2448.1,2448.0,0.40831]
[1750996393414,1.4342,2448.2,2448.0,0.40831]
[1750996393617,1.4342,2448.2,2448.1,0.4083]
[1750996393824,1.4342,2448.2,2448.0,1.11171]
[1750996394517,1.84248,2448.2,2448.0,1.11171]
[1750996395716,1.84248,2448.2,2448.0,0.7034]
[1750996396017,1.84248,2448.2,2448.0,1.11171]
[1750996396817,1.84248,2448.2,2448.0,0.7034]
[1750996397018,1.84248,2448.2,2448.0,1.11171]
[1750996398016,1.84248,2448.2,2448.0,0.7034]
[1750996399721,1.4342,2448.2,2448.0,0.7034]
[1750996400216,2.8064,2448.2,2448.0,0.7034]
[1750996400418,3.21469,2448.2,2448.0,0.7034]
[1750996405026,0.4083,2448.1,2448.0,0.7034]
[1750996405420,5.75865594,2448.2,2447.9,3.2078]
[1750996405625,0.4083,2448.1,2447.9,3.2078]
[1750996405826,2.8064,2448.2,2447.9,3.61612]
[1750996406627,0.4083,2448.1,2447.9,3.2078]
[1750996408230,2.8064,2448.2,2447.9,3.2078]
[1750996408418,1.74921,2448.1,2447.9,3.2078]
[1750996409828,1.74921,2448.1,2447.9,3.61613]
[1750996410630,1.3409,2448.1,2448.0,0.40831]
[1750996410830,0.9848151,2448.1,2448.0,0.40831]
[1750996411029,1.84249,2448.2,2448.0,0.40831]
[1750996412231,1.84249,2448.2,2447.9,3.61612]
[1750996412532,1.4342,2448.2,2448.0,0.40831]
[1750996412726,1.84248,2448.2,2447.9,3.61612]
[1750996412925,1.84248,2448.2,2447.9,5.67170264]
[1750996413233,1.4342,2448.2,2447.9,5.67170264]
[1750996413434,1.4342,2448.2,2448.0,0.40831]
[1750996417639,1.4342,2448.2,2448.1,2.46388264]
[1750996423546,6.79226,2448.4,2448.1,2.46388264]
[1750996423745,0.98440715,2448.3,2448.2,0.6927]
[1750996425747,1.39266715,2448.3,2448.2,0.6927]
[1750996426750,1.39266715,2448.3,2448.0,0.4083]
[1750996426949,1.77436,2448.3,2448.0,3.14808264]
[1750996427351,7.52356,2448.4,2448.2,5.67166264]
[1750996427554,0.98453758,2448.3,2448.2,5.67166264]
[1750996433959,0.98453758,2448.3,2448.2,5.26338264]
[1750996434167,1.39279758,2448.3,2448.2,5.26338264]
[1750996434471,1.39279758,2448.3,2448.2,3.2078]
[1750996435569,1.39279758,2448.3,2448.1,2.46387264]
[1750996435769,0.40826,2448.3,2448.1,2.46387264]
[1750996437171,2.46384264,2448.3,2448.1,2.46387264]
[1750996437471,2.46384264,2448.3,2448.1,0.40829]
[1750996437671,3.85144264,2448.3,2448.1,0.40829]
[1750996437872,0.98451834,2448.2,2448.1,0.40829]
[1750996438373,0.98451834,2448.2,2448.0,1.09251]
[1750996438560,3.85144264,2448.3,2448.0,1.09251]
[1750996438766,0.9845447,2448.2,2448.0,1.09251]
[1750996439070,3.85144264,2448.3,2448.0,1.09251]
[1750996439270,0.98454213,2448.2,2448.0,1.09251]
[1750996439472,0.7219,2448.2,2448.0,1.09251]
[1750996439674,1.13018,2448.2,2448.0,0.6842]
[1750996439871,0.6928,2448.1,2448.0,0.6842]
[1750996440474,0.6928,2448.1,2448.0,1.09251]
[1750996441074,0.6928,2448.1,2448.0,0.6842]
[1750996441769,0.6928,2448.1,2448.0,2.73978264]
[1750996441964,2.74838264,2448.1,2447.7,11.69158526]
[1750996442169,2.05558264,2447.9,2447.6,3.2078]
[1750996442478,2.05558264,2447.7,2447.6,3.2078]
[1750996442675,1.3835,2448.0,2447.6,3.2078]
[1750996442676,1.3594,2447.8,2447.6,3.2078]
[1750996442968,1.3594,2447.8,2447.7,2.46394264]
[1750996443170,2.3441584,2447.8,2447.7,2.46394264]
[1750996443763,2.42778938,2448.4,2447.7,2.05558264]
[1750996444075,0.40828,2448.2,2447.9,5.67171264]
[1750996444268,0.9840537,2448.1,2447.9,3.61613]
[1750996444469,0.9840537,2448.0,2447.9,3.61613]
[1750996448977,0.9840537,2448.0,2447.8,0.6641]
[1750996449271,0.40832,2448.0,2447.9,0.40833]
[1750996449471,1.39200232,2448.0,2447.9,0.40833]
[1750996449677,1.39200232,2448.0,2447.8,1.07244]
[1750996449878,0.40832,2448.0,2447.8,1.07244]
[1750996450379,1.11211,2448.1,2447.9,0.40833]
[1750996450579,0.98343809,2448.0,2447.9,0.40833]
[1750996450779,1.11211,2448.1,2447.9,0.40833]
[1750996451681,0.7038,2448.1,2448.0,0.40831]
[1750996451869,1.68715358,2448.1,2448.0,0.40831]
[1750996452270,1.68715358,2448.1,2447.9,0.40832]
[1750996452475,0.7038,2448.1,2447.9,0.40832]
[1750996452875,0.98334758,2448.0,2447.9,0.40832]
[1750996453076,1.1121,2448.1,2447.9,0.40832]
[1750996453577,0.7038,2448.1,2448.0,0.40831]
[1750996453778,2.09539531,2448.1,2447.9,0.40832]
[1750996453977,1.1121,2448.1,2447.9,0.40832]
[1750996454680,1.1121,2448.1,2448.0,0.40831]
[1750996454884,1.68708363,2448.1,2448.0,0.40831]
[1750996455982,2.09538363,2448.1,2448.0,0.40831]
[1750996457076,1.68708363,2448.1,2448.0,0.40831]
[1750996457583,0.98328363,2448.1,2448.0,0.40831]
[1750996458477,0.98328363,2448.1,2448.0,3.34445677]
[1750996459291,0.98328363,2448.1,2448.0,0.40831]
[1750996460489,0.6629,2448.3,2448.2,0.40828]
[1750996460786,1.64821044,2448.3,2448.1,3.61609]
[1750996460982,0.6629,2448.3,2448.1,3.61609]
[1750996462181,0.6629,2448.3,2448.2,0.40828]
[1750996462387,1.64832716,2448.3,2448.1,3.61609]
[1750996462685,0.6629,2448.3,2448.1,3.61609]
[1750996462887,2.0197,2448.3,2448.1,3.61609]
[1750996463585,2.0197,2448.3,2448.2,0.40828]
[1750996463783,3.00518832,2448.3,2448.1,0.40829]
[1750996463980,2.0197,2448.3,2448.1,0.40829]
[1750996464486,0.985554,2448.2,2448.0,0.40831]
[1750996464675,1.3786,2448.2,2448.0,0.40831]
[1750996465491,1.3786,2448.2,2448.1,0.4083]
[1750996465694,2.36426617,2448.2,2448.0,0.40831]
[1750996465989,1.3786,2448.2,2448.0,0.40831]
[1750996466193,1.3786,2448.1,2448.0,0.40831]
[1750996466386,1.7869,2448.1,2447.9,0.40832]
[1750996466583,1.3967,2448.0,2447.9,0.40832]
[1750996466887,2.7753,2448.0,2447.9,0.40832]
[1750996471390,2.7753,2448.0,2447.8,3.61614]
[1750996472191,2.7753,2448.0,2447.9,0.40833]
[1750996473387,1.3967,2448.0,2447.9,0.40833]
[1750996474884,1.3967,2448.0,2447.9,1.09443]
[1750996475080,1.81147,2448.3,2448.1,0.4083]
[1750996475284,1.67289136,2448.2,2448.0,0.40831]
[1750996475494,0.98619136,2448.1,2448.0,0.40831]
[1750996481886,0.6867,2448.2,2448.1,0.4083]
[1750996482092,1.67297978,2448.2,2448.1,0.4083]
[1750996483397,1.67297978,2448.2,2448.1,3.6161]
[1750996483791,1.67297978,2448.2,2448.1,0.4083]
[1750996483994,1.67297978,2448.2,2448.1,3.6161]
[1750996484698,0.98627978,2448.2,2448.1,3.6161]
[1750996486999,0.98627978,2448.2,2448.1,5.0621]
[1750996489397,7.0375,2448.6,2448.4,0.40824]
[1750996489700,0.98698018,2448.5,2448.4,0.40824]
[1750996489894,1.39522018,2448.5,2448.2,0.40828]
[1750996490196,5.37942695,2448.4,2448.2,0.40828]
[1750996490396,3.17218018,2448.3,2448.2,0.40828]
[1750996490597,3.87628018,2448.3,2448.2,0.40828]
[1750996490797,3.87628018,2448.3,2447.9,7.078]
[1750996490993,5.37942695,2448.2,2447.8,3.2078]
[1750996491202,2.93614677,2448.0,2447.8,3.61614]
[1750996491398,2.1852,2447.9,2447.8,3.61614]
[1750996491604,2.8893,2447.9,2447.8,3.61614]
[1750996494115,2.8893,2447.9,2447.8,3.2078]
[1750996494307,2.8893,2447.9,2447.8,3.61615]
[1750996497505,2.8893,2447.9,2447.8,3.2078]
[1750996497706,2.8893,2447.9,2447.8,3.61615]
[1750996500311,3.2078,2448.2,2448.1,0.4083]
[1750996500504,4.2044299,2448.2,2448.1,0.4083]
[1750996500814,0.9966299,2448.2,2448.1,3.6161]
[1750996501013,0.6766,2448.4,2448.3,0.40826]
[1750996501209,1.67326944,2448.4,2448.3,0.40826]
[1750996501417,0.99666944,2448.4,2448.3,0.40826]
[1750996501616,0.99666944,2448.4,2448.3,2.47596]
[1750996502310,0.6764,2448.7,2448.6,0.40821]
[1750996502514,1.67275057,2448.7,2448.6,0.40821]
[1750996502815,0.99635057,2448.7,2448.6,3.34435677]
[1750996503316,0.7287,2448.8,2448.7,0.4082]
[1750996503517,1.3931,2449.1,2448.7,0.4082]
[1750996503518,0.29446674,2449.2,2448.7,3.2078]
[1750996503818,0.29446674,2449.2,2449.1,3.61593]
[1750996504316,1.29008212,2449.2,2449.1,0.40813]
[1750996504717,1.28824148,2449.2,2449.1,0.40813]
[1750996504918,0.29446674,2449.2,2449.1,0.40813]
[1750996505416,0.29446674,2449.2,2449.1,3.61593]
[1750996515723,0.29446674,2449.2,2449.1,5.06033]
[1750996515923,0.29446674,2449.2,2449.1,11.42133]
[1750996517325,0.29446674,2449.2,2449.1,52.22133]
[1750996518929,0.29446674,2449.2,2449.1,50.77593]
[1750996519623,0.29446674,2449.2,2449.1,44.41593]
[1750996519822,0.29446674,2449.2,2449.1,3.61593]
[1750996520022,0.29446674,2449.2,2449.1,3.2078]
[1750996520227,3.23061351,2449.2,2449.1,3.2078]
[1750996520426,3.23061351,2449.2,2449.1,3.61593]
[1750996520628,3.95741351,2449.2,2449.1,3.61593]
[1750996521730,5.29841351,2449.2,2449.1,3.61593]
[1750996522032,5.29841351,2449.2,2449.1,0.40813]
[1750996523433,5.29841351,2449.2,2448.9,6.36]
[1750996523730,2.93614677,2449.0,2448.9,6.36]
[1750996524124,5.04184677,2449.0,2448.8,9.97597]
[1750996525035,8.24964677,2449.0,2448.5,3.2078]
[1750996525334,2.93614677,2448.7,2448.6,0.40821]
[1750996525535,2.93614677,2448.7,2448.5,9.97402]
[1750996525737,0.6747,2448.6,2448.5,9.97402]
[1750996532333,0.6747,2448.6,2448.5,3.61602]
[1750996532741,2.0171,2448.6,2448.5,3.61602]
[1750996538750,0.7151,2449.0,2448.5,3.2078]
[1750996538947,0.7151,2449.0,2448.4,2.93614677]
[1750996538948,1.3926,2449.0,2448.9,3.2078]
[1750996539147,1.3926,2449.0,2448.9,3.61596]
[1750996540350,0.29446674,2449.2,2449.1,0.40813]
[1750996540547,1.97068033,2449.2,2449.1,0.40813]
[1750996541239,4.9068271,2449.2,2448.9,3.2078]
[1750996541444,2.38961359,2449.1,2448.7,0.6738]
[1750996541644,1.3909,2449.0,2448.7,0.6738]
[1750996541849,1.3909,2449.0,2448.9,0.40816]
[1750996543552,1.3909,2449.0,2448.8,0.40817]
[1750996543754,4.73519677,2449.0,2448.7,0.6738]
[1750996544156,4.32704677,2449.0,2448.8,0.40818]
[1750996544348,1.3251,2448.9,2448.7,1.08199]
[1750996544850,0.7208,2448.8,2448.7,0.40819]
[1750996545354,1.3922,2448.8,2448.6,9.97401]
[1750996545557,1.3922,2448.8,2448.6,3.61601]
[1750996545955,2.7173,2448.8,2448.6,3.61601]
[1750996546155,2.7173,2448.8,2448.7,0.4082]
[1750996546456,2.7173,2448.8,2448.6,3.616]
[1750996546656,2.7173,2448.8,2448.7,0.4082]
[1750996547357,2.7173,2448.8,2448.6,3.616]
[1750996549156,2.7173,2448.8,2448.7,0.4082]
[1750996549660,5.65344677,2448.8,2448.6,3.616]
[1750996549961,1.4001,2448.7,2448.6,3.616]
[1750996550259,1.4001,2448.7,2448.4,0.40824]
[1750996550460,2.93614677,2448.6,2448.4,0.40824]
[1750996550764,1.4001,2448.7,2448.5,0.40823]
[1750996550950,1.3922,2448.8,2448.5,3.2078]
[1750996551154,1.3922,2448.8,2448.6,0.4082]
[1750996552262,1.3922,2448.8,2448.5,3.2078]
[1750996552459,1.3922,2448.8,2448.7,0.4082]
[1750996552663,2.39378335,2448.8,2448.7,0.4082]
[1750996556077,1.00158335,2448.8,2448.7,0.4082]
[1750996556280,1.00158335,2448.8,2448.7,3.34434677]
[1750996556472,1.3768,2449.1,2448.9,0.40816]
[1750996556673,1.00198867,2449.0,2448.9,0.40816]
[1750996559478,1.00198867,2449.0,2448.8,1.79217]
[1750996559680,0.40813,2449.1,2448.8,1.79217]
[1750996559865,1.002164,2449.0,2448.8,1.10277]
[1750996560069,0.6825,2449.0,2448.8,1.10277]
[1750996560767,2.93614677,2448.9,2448.5,3.2078]
[1750996560969,2.93614677,2448.7,2448.6,0.40821]
[1750996561177,1.00229499,2448.7,2448.6,0.40821]
[1750996561483,0.6825,2448.7,2448.6,0.40821]
[1750996561675,1.68479499,2448.7,2448.6,0.40821]
[1750996561975,15.97694176,2448.7,2448.1,0.40829]
[1750996562177,2.93614677,2448.3,2447.9,3.95180262]
[1750996562381,3.2078,2448.4,2448.2,0.40828]
[1750996562780,3.2078,2448.4,2448.1,0.40829]
[1750996562976,3.2078,2448.4,2448.2,0.40827]
[1750996564280,3.2078,2448.4,2448.3,0.40826]
[1750996564776,3.2078,2448.4,2448.2,0.40827]
[1750996569182,2.48202,2448.6,2448.2,0.40827]
[1750996569384,4.21865437,2448.5,2448.2,0.40827]
[1750996569577,3.2078,2448.5,2448.2,0.40827]
[1750996569883,6.14394677,2448.5,2448.2,0.40827]
[1750996570275,7.58284677,2448.5,2448.3,0.40826]
[1750996570477,7.58284677,2448.5,2448.0,4.31594677]
[1750996570478,7.58284677,2448.5,2448.2,0.40827]
[1750996570675,7.58284677,2448.5,2448.1,0.40829]
[1750996570876,7.99109677,2448.5,2448.2,0.40828]
[1750996571375,7.58284677,2448.5,2448.2,0.40828]
[1750996572486,6.14394677,2448.5,2448.3,0.40826]
[1750996572881,3.2078,2448.5,2448.3,0.40826]
[1750996573081,3.2078,2448.5,2448.4,0.40825]
[1750996575079,6.14394677,2448.5,2448.0,6.76531]
[1750996575280,0.40832,2448.0,2447.7,3.24800262]
[1750996575478,6.14394677,2447.8,2447.5,3.24800262]
[1750996575679,6.14394677,2447.8,2447.6,0.40837]
[1750996575879,6.14394677,2447.8,2447.5,0.40839]
[1750996576390,3.2078,2447.8,2447.7,0.40836]
[1750996578187,3.2078,2447.8,2447.6,1.08907]
[1750996578875,3.2078,2447.8,2447.7,0.40836]
[1750996581186,1.4295,2447.9,2447.8,0.40835]
[1750996581388,2.44409762,2447.9,2447.8,0.40835]
[1750996581586,1.4295,2447.9,2447.8,0.40835]
[1750996584786,3.2078,2448.1,2447.8,2.93614677]
[1750996584990,2.0678,2448.2,2448.1,0.4083]
[1750996585291,1.01484375,2448.2,2448.1,0.4083]
[1750996585482,1.01484375,2448.2,2448.1,1.1134]
[1750996585689,3.2078,2448.4,2448.3,0.40826]
[1750996585894,4.22260427,2448.4,2448.3,0.40826]
[1750996589395,3.2078,2448.4,2448.3,0.40826]
[1750996590294,3.2078,2448.4,2448.1,0.7051]
[1750996590499,0.6815,2448.3,2448.1,1.11339]
[1750996591091,0.6815,2448.3,2448.2,0.40828]
[1750996591288,0.6815,2448.3,2448.1,41.5051]
[1750996591493,0.6815,2448.3,2448.1,41.91339]
[1750996591887,0.6815,2448.3,2448.2,0.40828]
[1750996593301,2.1259,2448.3,2448.2,0.40828]
[1750996593999,0.6815,2448.3,2448.2,0.40828]
[1750996599403,3.2078,2448.4,2448.3,0.40826]
[1750996604405,0.6744,2448.6,2448.5,0.40823]
[1750996605198,3.2078,2448.7,2448.6,0.40821]
[1750996605403,4.22307531,2448.7,2448.6,0.40821]
[1750996606605,5.60547531,2448.7,2448.6,0.40821]
[1750996607510,5.60547531,2448.7,2448.5,0.40822]
[1750996607707,5.02854677,2448.6,2448.5,0.40822]
[1750996610513,2.0924,2448.6,2448.5,0.40822]
[1750996616217,5.02854677,2448.6,2448.5,0.40822]
[1750996618821,2.0924,2448.6,2448.5,0.40822]
[1750996620226,0.7255,2448.6,2448.5,0.40822]
[1750996623327,3.2078,2448.7,2448.6,0.40822]
[1750996623533,4.22371543,2448.7,2448.6,0.40822]
[1750996624126,3.2078,2448.7,2448.6,0.40822]
[1750996624332,4.2237162,2448.7,2448.6,0.40822]
[1750996624533,0.6943,2448.8,2448.7,0.4082]
[1750996625035,1.01590028,2448.8,2448.7,0.4082]
[1750996625237,3.9021,2449.0,2448.8,0.40818]
[1750996625440,1.01586506,2448.9,2448.8,0.40818]
[1750996632145,6.83824677,2449.0,2448.8,0.40818]
[1750996632442,1.01563232,2448.9,2448.8,0.40818]
[1750996632842,6.83824677,2449.0,2448.8,0.40818]
[1750996633043,1.4456,2448.9,2448.8,0.40818]